bitfinex-derivatives/quotes_SOLF0:USTF0_20250614
["timestamp","ask_amount","ask_price","bid_price","bid_amount"]
[1749926411017,36.8,143.38,143.32,6.9746]
[1749926411215,6.9719,143.38,143.33,36.82]
[1749926411626,6.9719,143.38,143.34,6.9734]
[1749926411922,6.9723,143.37,143.33,36.82]
[1749926412120,0.04844897,143.37,143.35,0.05029223]
[1749926413132,7.02074897,143.37,143.35,0.05029223]
[1749926413331,0.04844897,143.37,143.35,0.05029223]
[1749926413628,7.02084897,143.37,143.35,0.05029223]
[1749926415525,6.9727,143.36,143.35,0.05029223]
[1749926423437,7.02084897,143.37,143.35,0.05029223]
[1749926423640,0.04844897,143.37,143.35,0.05029223]
[1749926424027,7.9188099,143.36,143.28,36.82]
[1749926424832,7.9188099,143.34,143.28,36.82]
[1749926425036,0.05161104,143.32,143.3,0.04609325]
[1749926425438,6.9751,143.31,143.3,0.04609325]
[1749926425740,0.05161104,143.32,143.3,0.04609325]
[1749926426039,6.9751,143.31,143.3,0.04609325]
[1749926430246,6.9751,143.31,143.3,9.325e-05]
[1749926430247,12.32340588,143.31,143.3,9.325e-05]
[1749926430652,6.9751,143.31,143.3,9.325e-05]
[1749926433247,6.98,143.31,143.22,36.72]
[1749926433444,5.34830588,143.28,143.22,36.72]
[1749926433638,5.34830588,143.26,143.19,36.72]
[1749926433844,2.2461,143.27,143.19,36.72]
[1749926434043,7.59440588,143.27,143.21,6.98]
[1749926434243,0.05147988,143.25,143.23,0.0466478]
[1749926434439,0.05147988,143.25,143.23,36.7666478]
[1749926434638,4.4949,143.32,143.24,5.34830588]
[1749926434841,6.9758,143.3,143.26,5.34830588]
[1749926435144,2.2769,143.33,143.27,36.72]
[1749926435341,6.9754,143.31,143.27,42.06830588]
[1749926435644,6.9754,143.31,143.28,0.04668127]
[1749926435843,0.05020344,143.3,143.28,0.04668127]
[1749926436043,7.02590344,143.3,143.28,0.04668127]
[1749926436242,0.05020344,143.3,143.28,0.04668127]
[1749926437151,6.9761,143.29,143.28,0.04668127]
[1749926437346,6.9761,143.29,143.28,8.127e-05]
[1749926446660,7.02600344,143.3,143.28,8.127e-05]
[1749926447749,0.05020344,143.3,143.28,8.127e-05]
[1749926449762,7.02600344,143.3,143.28,8.127e-05]
[1749926451051,0.05020344,143.3,143.28,6.97658127]
[1749926451565,0.05020344,143.3,143.28,8.127e-05]
[1749926451760,7.02590344,143.3,143.28,8.127e-05]
[1749926452159,0.05020344,143.3,143.28,8.127e-05]
[1749926452557,0.05020344,143.3,143.28,6.97668127]
[1749926452758,0.05020344,143.3,143.28,8.127e-05]
[1749926454061,0.05020344,143.3,143.28,6.97668127]
[1749926454568,0.05020344,143.3,143.28,8.127e-05]
[1749926455861,7.02590344,143.3,143.28,8.127e-05]
[1749926456768,6.9761,143.29,143.28,8.127e-05]
[1749926458061,0.05020344,143.3,143.28,8.127e-05]
[1749926458863,0.05020344,143.3,143.28,6.97638127]
[1749926459361,0.05020344,143.3,143.28,8.127e-05]
[1749926459974,7.02580344,143.3,143.28,8.127e-05]
[1749926460271,0.05020344,143.3,143.28,8.127e-05]
[1749926460462,6.9761,143.29,143.28,8.127e-05]
[1749926463263,12.32440588,143.29,143.28,8.127e-05]
[1749926463468,14.75210588,143.29,143.28,8.127e-05]
[1749926464067,6.979,143.23,143.22,37.06]
[1749926464570,6.9797,143.22,143.19,52.65451904]
[1749926464770,5.34830588,143.26,143.19,45.67371904]
[1749926464970,5.34830588,143.26,143.19,37.06]
[1749926465173,6.9798,143.22,143.21,0.04954626]
[1749926466067,0.04869823,143.24,143.21,5.39785214]
[1749926466270,0.04869823,143.24,143.22,6.9795]
[1749926466769,0.04869823,143.24,143.21,5.39785214]
[1749926466961,0.04869823,143.24,143.21,0.04954626]
[1749926467869,6.9795,143.22,143.21,0.04954626]
[1749926469265,0.04869823,143.24,143.21,0.04954626]
[1749926469467,0.04869823,143.24,143.21,5.39785214]
[1749926470072,0.04869823,143.24,143.21,14.01157118]
[1749926470473,0.04869823,143.24,143.22,6.9791]
[1749926470777,174.94137255,143.33,143.23,42.40830588]
[1749926471078,174.94137255,143.33,143.24,6.9784]
[1749926471270,174.94137255,143.33,143.23,44.72800588]
[1749926471470,6.976,143.3,143.26,6.9772]
[1749926471668,0.05160267,143.29,143.27,0.0488535]
[1749926472376,0.05160267,143.29,143.27,7.0258535]
[1749926472977,0.05160267,143.29,143.27,44.0858535]
[1749926473381,7.02780267,143.29,143.27,37.1088535]
[1749926474276,6.9766,143.28,143.27,37.1088535]
[1749926474472,0.05160267,143.29,143.27,37.1088535]
[1749926474672,6.9766,143.28,143.27,0.0488535]
[1749926477472,7.02790267,143.29,143.27,0.0488535]
[1749926478681,0.05160267,143.29,143.27,0.0488535]
[1749926479773,7.02800267,143.29,143.27,0.0488535]
[1749926479969,0.05160267,143.29,143.27,0.0488535]
[1749926480681,0.05160267,143.29,143.27,7.0258535]
[1749926481585,0.05160267,143.29,143.27,0.0488535]
[1749926483278,6.9766,143.28,143.27,0.0488535]
[1749926483978,0.05160267,143.29,143.27,0.0488535]
[1749926484172,0.05160267,143.29,143.28,42.40830588]
[1749926484783,0.05160267,143.29,143.28,49.38490588]
[1749926486376,0.05160267,143.29,143.28,42.40830588]
[1749926486580,0.05160267,143.29,143.28,37.06]
[1749926487475,0.05160267,143.29,143.28,44.0366]
[1749926487788,132.53306667,143.33,143.28,42.40830588]
[1749926488187,6.9749,143.32,143.29,6.9758]
[1749926488388,6.9749,143.32,143.28,42.40830588]
[1749926488785,0.05346449,143.31,143.29,0.05036526]
[1749926489186,0.05346449,143.31,143.3,6.9756]
[1749926489491,0.05346449,143.31,143.3,12.32390588]
[1749926490190,2.286,143.37,143.32,6.9747]
[1749926490489,2.286,143.37,143.3,5.34830588]
[1749926491082,6.9739,143.34,143.32,0.04551964]
[1749926491280,0.05246644,143.35,143.32,0.04551964]
[1749926491581,6.9742,143.33,143.32,0.04551964]
[1749926494588,0.05246644,143.35,143.32,0.04551964]
[1749926494790,0.05246644,143.35,143.32,37.30551964]
[1749926495991,6.9742,143.33,143.32,37.30551964]
[1749926496195,0.05246644,143.35,143.32,37.30551964]
[1749926496391,6.9739,143.34,143.32,37.30551964]
[1749926498493,6.9742,143.33,143.32,37.30551964]
[1749926498800,0.05246644,143.35,143.32,44.28011964]
[1749926498987,7.02596644,143.35,143.32,44.28011964]
[1749926499995,6.9737,143.34,143.32,37.30551964]
[1749926501905,6.9742,143.33,143.32,37.30551964]
[1749926502501,6.9739,143.34,143.32,37.30551964]
[1749926502998,6.9742,143.33,143.32,37.30551964]
[1749926504202,6.9742,143.33,143.32,0.04551964]
[1749926505200,6.9756,143.3,143.29,37.26]
[1749926505396,5.34830588,143.33,143.26,37.26]
[1749926505802,6.9768,143.28,143.26,37.26]
[1749926506100,5.34830588,143.31,143.24,409.55730588]
[1749926506305,0.04794771,143.29,143.26,0.0452055]
[1749926506700,6.9773,143.27,143.26,0.0452055]
[1749926507700,6.979,143.23,143.22,37.26]
[1749926508609,6.9797,143.22,143.19,44.2407]
[1749926508819,0.04547402,143.22,143.19,37.30648237]
[1749926509206,6.9805,143.2,143.19,37.30648237]
[1749926509711,6.9802,143.21,143.19,37.30648237]
[1749926510308,0.04547402,143.22,143.19,37.30648237]
[1749926510512,7.02527402,143.22,143.19,37.30648237]
[1749926511415,6.9801,143.21,143.19,0.04648237]
[1749926511818,0.04547402,143.22,143.19,0.04648237]
[1749926512014,6.98,143.21,143.19,0.04648237]
[1749926512515,0.04547402,143.22,143.19,0.04648237]
[1749926512717,6.9805,143.2,143.19,0.04648237]
[1749926513309,6.9818,143.18,143.15,37.28]
[1749926513616,37.28,143.23,143.15,42.62830588]
[1749926513809,6.9792,143.23,143.19,6.9806]
[1749926514014,6.9792,143.23,143.19,42.62830588]
[1749926514216,0.05020626,143.22,143.2,0.04695129]
[1749926514820,7.02980626,143.22,143.2,0.04695129]
[1749926515510,6.98,143.21,143.2,0.04695129]
[1749926515908,0.05020626,143.22,143.2,0.04695129]
[1749926519213,7.02980626,143.22,143.2,0.04695129]
[1749926520224,6.98,143.21,143.2,0.04695129]
[1749926521925,6.9819,143.18,143.16,37.18]
[1749926522119,5.34830588,143.22,143.16,37.18]
[1749926522921,0.05203163,143.2,143.18,0.0531282]
[1749926523323,0.05203163,143.2,143.13,37.18]
[1749926523324,7.65473751,143.2,143.13,37.18]
[1749926523822,6.9827,143.16,143.13,44.1638]
[1749926524324,6.9831,143.15,143.13,37.21425062]
[1749926524824,6.9834,143.14,143.13,37.21425062]
[1749926525124,0.05254007,143.16,143.13,37.21425062]
[1749926525314,0.05254007,143.16,143.15,12.33120588]
[1749926525516,2.2276,143.23,143.15,5.34830588]
[1749926525724,37.18,143.25,143.17,5.34830588]
[1749926525924,4.5935,143.26,143.19,12.32890588]
[1749926526120,4.5935,143.26,143.19,6.9806]
[1749926526317,4.5935,143.26,143.19,5.34830588]
[1749926526521,6.9794,143.23,143.21,0.04758333]
[1749926526926,0.05289677,143.24,143.21,0.04758333]
[1749926528229,6.9794,143.23,143.21,0.04758333]
[1749926528423,0.05289677,143.24,143.21,0.04758333]
[1749926529021,6.9795,143.22,143.21,0.04758333]
[1749926529219,0.05289677,143.24,143.21,0.04758333]
[1749926529529,6.9791,143.23,143.21,0.04758333]
[1749926530224,7.03159677,143.24,143.21,0.04758333]
[1749926530423,0.05289677,143.24,143.21,0.04758333]
[1749926531128,6.979,143.23,143.21,0.04758333]
[1749926531732,0.05289677,143.24,143.22,6.9792]
[1749926532526,0.05289677,143.24,143.23,6.979]
[1749926539731,132.59713789,143.33,143.23,6.98]
[1749926540030,132.59713789,143.33,143.27,7.93066017]
[1749926540237,132.59713789,143.33,143.28,37.18]
[1749926540733,6.9752,143.31,143.29,0.04652839]
[1749926541537,6.9756,143.3,143.29,0.04652839]
[1749926543230,0.04468048,143.32,143.29,0.04652839]
[1749926544335,6.9756,143.3,143.29,0.04652839]
[1749926545037,6.9774,143.27,143.25,37.18]
[1749926545924,7.0265572,143.27,143.25,37.18]
[1749926546130,7.0265572,143.27,143.25,37.22732675]
[1749926546331,6.9776,143.26,143.25,37.22732675]
[1749926546940,7.0263572,143.27,143.25,37.22732675]
[1749926547438,0.0491572,143.27,143.26,12.32664169]
[1749926547636,44.84304169,143.36,143.26,5.34904169]
[1749926547848,44.84304169,143.36,143.28,5.34904169]
[1749926548043,44.84304169,143.36,143.28,12.32564169]
[1749926548240,44.84304169,143.36,143.29,37.62]
[1749926548541,39.494,143.36,143.3,5.34904169]
[1749926548742,0.05062222,143.34,143.32,0.04946846]
[1749926549634,6.9745,143.33,143.32,0.04946846]
[1749926552542,6.9756,143.3,143.29,37.62]
[1749926552744,5.34904169,143.34,143.26,42.96904169]
[1749926553043,6.9771,143.27,143.26,42.96904169]
[1749926553235,5.34904169,143.34,143.26,42.96904169]
[1749926553429,0.05272693,143.31,143.29,0.05283463]
[1749926553637,6.9756,143.3,143.29,0.05283463]
[1749926553837,0.05272693,143.31,143.26,37.62]
[1749926554032,2.27572693,143.31,143.26,37.62]
[1749926554244,6.9771,143.27,143.26,37.62]
[1749926562747,6.9776,143.26,143.25,0.04001318]
[1749926564049,6.9773,143.27,143.25,0.04001318]
[1749926564552,0.05229648,143.28,143.25,0.04001318]
[1749926564740,6.9771,143.27,143.25,0.04001318]
[1749926564942,0.05229648,143.28,143.25,0.04001318]
[1749926565437,6.9776,143.26,143.25,0.04001318]
[1749926566547,7.02909648,143.28,143.25,0.04001318]
[1749926566750,0.05229648,143.28,143.25,7.01781318]
[1749926566948,0.05229648,143.28,143.25,0.04001318]
[1749926567151,7.02929648,143.28,143.25,0.04001318]
[1749926568138,7.02929648,143.28,143.25,7.01801318]
[1749926569348,7.02929648,143.28,143.26,37.62]
[1749926570053,6.9771,143.27,143.26,37.62]
[1749926571946,6.9776,143.26,143.25,0.04001318]
[1749926572342,0.05229648,143.28,143.25,0.04001318]
[1749926572542,6.9773,143.27,143.25,0.04001318]
[1749926573346,7.02899648,143.28,143.25,7.01791318]
[1749926574749,0.05229648,143.28,143.26,7.92438251]
[1749926575158,0.05229648,143.28,143.27,44.5971]
[1749926575351,0.05229648,143.28,143.27,49.94396282]
[1749926576741,2.3516,143.34,143.27,42.96686282]
[1749926577048,4.6737,143.36,143.29,5.34686282]
[1749926577244,6.9744,143.33,143.29,12.32266282]
[1749926577646,0.04937172,143.32,143.3,0.04672104]
[1749926577949,5.39623454,143.32,143.3,0.04672104]
[1749926578651,6.9751,143.31,143.3,0.04672104]
[1749926580549,6.9751,143.31,143.3,2.104e-05]
[1749926580748,6.9781,143.25,143.24,8.61371904]
[1749926581052,5.34686282,143.28,143.22,45.97371904]
[1749926581248,5.34686282,143.28,143.22,37.36]
[1749926581855,0.0514094,143.26,143.24,0.04558863]
[1749926582157,6.9785,143.25,143.24,0.04558863]
[1749926583546,6.98,143.21,143.19,447.95371904]
[1749926583749,6.98,143.21,143.19,439.34]
[1749926583951,6.98,143.21,143.19,37.36]
[1749926584461,6.9805,143.2,143.19,37.36]
[1749926584648,0.05023577,143.21,143.19,37.36]
[1749926585359,7.03043577,143.21,143.19,37.36]
[1749926588654,6.9805,143.2,143.19,37.36]
[1749926589256,0.05023577,143.21,143.17,5.34686282]
[1749926589559,0.05023577,143.21,143.19,5.34686282]
[1749926589860,0.05023577,143.21,143.19,12.32746282]
[1749926594359,0.05023577,143.21,143.19,5.34686282]
[1749926594563,7.03063577,143.21,143.17,5.34686282]
[1749926594953,7.03063577,143.21,143.17,12.32846282]
[1749926595768,7.03063577,143.21,143.18,6.9814]
[1749926596268,0.05023577,143.21,143.19,6.981]
[1749926596468,7.74236282,143.28,143.2,37.38]
[1749926596664,7.74236282,143.28,143.2,44.3603]
[1749926596665,6.9789,143.24,143.2,44.3603]
[1749926597261,6.9789,143.24,143.2,37.38]
[1749926597463,0.04755634,143.23,143.21,7.02697411]
[1749926597663,0.04755634,143.23,143.21,0.04727411]
[1749926599071,0.04755634,143.23,143.21,7.02717411]
[1749926599274,0.04755634,143.23,143.21,0.04727411]
[1749926600161,0.04755634,143.23,143.22,6.9795]
[1749926600763,4.7739,143.31,143.21,14.00785597]
[1749926600971,4.7739,143.31,143.24,5.34686282]
[1749926601177,4.7739,143.31,143.24,42.72686282]
[1749926601374,4.7739,143.31,143.24,49.70516282]
[1749926601675,10.12076282,143.31,143.24,37.38]
[1749926601875,6.9771,143.27,143.26,0.05227114]
[1749926610690,6.9795,143.22,143.21,37.02]
[1749926613694,6.98,143.21,143.2,0.04450556]
[1749926621598,0.05353433,143.23,143.2,0.04450556]
[1749926621805,0.05353433,143.23,143.21,5.34686282]
[1749926622005,0.05353433,143.23,143.22,37.02]
[1749926622700,37.02,143.34,143.22,44.0]
[1749926622901,37.02,143.34,143.27,5.34686282]
[1749926623101,37.02,143.34,143.27,42.36686282]
[1749926623304,6.9755,143.31,143.27,49.34366282]
[1749926623498,37.02,143.34,143.27,49.34366282]
[1749926623700,0.0501343,143.32,143.29,0.04812919]
[1749926624408,6.9754,143.31,143.29,0.04812919]
[1749926627912,7.0251343,143.32,143.29,0.04812919]
[1749926628610,6.9752,143.31,143.29,0.04812919]
[1749926629211,6.9756,143.3,143.29,0.04812919]
[1749926630601,0.0501343,143.32,143.29,0.04812919]
[1749926631212,6.9752,143.31,143.29,0.04812919]
[1749926631407,0.0501343,143.32,143.29,0.04812919]
[1749926632511,6.9754,143.31,143.29,0.04812919]
[1749926633414,6.9756,143.3,143.29,0.04812919]
[1749926633618,0.0501343,143.32,143.29,0.04812919]
[1749926634715,7.0250343,143.32,143.29,7.02422919]
[1749926635102,0.0501343,143.32,143.29,0.04812919]
[1749926636110,0.0501343,143.32,143.3,6.9756]
[1749926637216,0.0501343,143.32,143.31,6.9752]
[1749926637513,0.0501343,143.32,143.29,5.39499201]
[1749926637915,0.0501343,143.32,143.3,6.9754]
[1749926638916,0.0501343,143.32,143.29,12.37089201]
[1749926639110,7.0249343,143.32,143.29,12.37089201]
[1749926639618,7.0249343,143.32,143.29,7.02402919]
[1749926639817,6.9755,143.31,143.29,0.04812919]
[1749926640318,7.0249343,143.32,143.29,0.04812919]
[1749926642018,7.0249343,143.32,143.29,7.02422919]
[1749926643316,0.0501343,143.32,143.29,5.39499201]
[1749926643620,5.34686282,143.39,143.31,5.34686282]
[1749926643819,6.9731,143.36,143.32,43.7344]
[1749926644016,39.1842,143.4,143.32,36.76]
[1749926644215,2.4242,143.4,143.33,5.34686282]
[1749926644413,2.4242,143.4,143.35,6.9728]
[1749926644722,0.0461029,143.39,143.36,0.05294531]
[1749926645112,6.9722,143.37,143.36,0.05294531]
[1749926645816,0.0461029,143.39,143.36,0.05294531]
[1749926646012,0.0461029,143.39,143.36,36.81294531]
[1749926646213,0.0461029,143.39,143.36,42.15980813]
[1749926646611,2.2956,143.44,143.38,5.34686282]
[1749926647114,2.2956,143.44,143.38,12.31826282]
[1749926647316,2.2956,143.44,143.38,5.34686282]
[1749926647617,0.05138747,143.42,143.4,0.04670308]
[1749926647820,0.05138747,143.42,143.4,36.80670308]
[1749926648014,7.02158747,143.42,143.4,36.80670308]
[1749926648523,0.05138747,143.42,143.4,36.80670308]
[1749926648723,6.9703,143.41,143.4,36.80670308]
[1749926648923,6.9703,143.41,143.4,0.04670308]
[1749926651318,0.05138747,143.42,143.4,0.04670308]
[1749926651720,6.9703,143.41,143.4,0.04670308]
[1749926651917,0.05138747,143.42,143.4,0.04670308]
[1749926652221,0.05138747,143.42,143.41,36.74]
[1749926653027,7.02118747,143.42,143.41,36.74]
[1749926653222,0.05138747,143.42,143.41,36.74]
[1749926653528,7.02118747,143.42,143.41,36.74]
[1749926654922,6.9703,143.41,143.4,0.04670308]
[1749926656730,0.05138747,143.42,143.4,0.04670308]
[1749926656925,0.05138747,143.42,143.4,5.3935659]
[1749926657114,5.34686282,143.54,143.4,12.3735659]
[1749926657317,6.9652,143.52,143.48,5.34686282]
[1749926657522,5.34686282,143.52,143.48,36.74]
[1749926658122,0.05139395,143.51,143.49,0.05100831]
[1749926658722,6.9664,143.5,143.49,0.05100831]
[1749926659622,5.34686282,143.5,143.43,36.74]
[1749926659828,5.34686282,143.48,143.43,36.74]
[1749926660027,6.9687,143.45,143.43,36.74]
[1749926660624,7.01426106,143.45,143.43,36.78693679]
[1749926660826,0.04556106,143.45,143.43,42.13379961]
[1749926661620,0.04556106,143.45,143.44,6.9688]
[1749926662526,0.04556106,143.45,143.43,49.10289961]
[1749926662921,0.04556106,143.45,143.43,36.78693679]
[1749926663629,2.2628,143.53,143.43,36.78693679]
[1749926663630,2.2628,143.53,143.43,42.13379961]
[1749926663928,6.9665,143.49,143.45,12.31496282]
[1749926664632,0.04537415,143.48,143.46,0.04530528]
[1749926665529,7.01237415,143.48,143.46,0.04530528]
[1749926667731,6.9674,143.47,143.46,0.04530528]
[1749926673331,6.9688,143.44,143.43,36.74]
[1749926673733,9.89976282,143.47,143.4,44.6906]
[1749926674427,6.9696,143.43,143.42,0.046531]
[1749926675437,0.04788004,143.45,143.42,0.046531]
[1749926675438,6.9691,143.44,143.42,0.046531]
[1749926675937,0.04788004,143.45,143.42,0.046531]
[1749926675938,6.9693,143.43,143.42,0.046531]
[1749926682741,0.04788004,143.45,143.42,0.046531]
[1749926682742,6.9692,143.44,143.42,0.046531]
[1749926682948,0.04788004,143.45,143.42,0.046531]
[1749926683143,0.04788004,143.45,143.42,37.766531]
[1749926683344,0.04788004,143.45,143.43,6.9693]
[1749926683850,0.04788004,143.45,143.42,37.766531]
[1749926684641,6.9689,143.44,143.42,44.736331]
[1749926685541,7.01628004,143.45,143.42,44.736331]
[1749926686746,6.9689,143.44,143.42,44.736331]
[1749926687549,6.9689,143.44,143.42,37.766531]
[1749926689350,6.9689,143.44,143.42,44.736231]
[1749926689943,7.01648004,143.45,143.42,37.766531]
[1749926690346,0.04788004,143.45,143.43,6.9692]
[1749926690545,7.01628004,143.45,143.42,37.766531]
[1749926691245,7.01628004,143.45,143.42,44.736031]
[1749926695450,0.04788004,143.45,143.43,5.34686282]
[1749926696151,0.04788004,143.45,143.43,12.31586282]
[1749926697653,0.04788004,143.45,143.44,6.9688]
[1749926697854,0.04788004,143.45,143.43,5.34686282]
[1749926698045,0.04788004,143.45,143.43,12.31596282]
[1749926699851,0.04788004,143.45,143.44,6.9688]
[1749926700052,0.04788004,143.45,143.43,5.34686282]
[1749926700549,0.04788004,143.45,143.43,12.31596282]
[1749926701750,0.04788004,143.45,143.44,6.9688]
[1749926701945,0.04788004,143.45,143.42,43.11339382]
[1749926702345,0.04788004,143.45,143.42,37.766531]
[1749926703060,6.9693,143.43,143.42,0.046531]
[1749926703756,6.9708,143.4,143.39,37.16]
[1749926704059,7.69236282,143.44,143.36,37.16]
[1749926704561,6.9717,143.39,143.36,37.16]
[1749926704855,7.01644652,143.39,143.36,37.21146841]
[1749926705457,0.04474652,143.39,143.36,37.21146841]
[1749926705757,0.04474652,143.39,143.37,5.34686282]
[1749926706456,0.04474652,143.39,143.37,12.31896282]
[1749926707563,0.04474652,143.39,143.37,6.9721]
[1749926708163,7.01604652,143.39,143.36,49.53083123]
[1749926708363,0.04474652,143.39,143.36,49.53083123]
[1749926709563,0.04474652,143.39,143.37,6.9721]
[1749926710663,0.04474652,143.39,143.38,6.9717]
[1749926710863,4.6218,143.45,143.38,5.34686282]
[1749926711267,4.6218,143.45,143.36,37.16]
[1749926711463,4.6218,143.45,143.37,5.34686282]
[1749926711661,5.34686282,143.44,143.37,5.34686282]
[1749926711865,0.05041911,143.42,143.39,0.05288756]
[1749926712360,6.9706,143.41,143.39,0.05288756]
[1749926712556,0.05041911,143.42,143.39,0.05288756]
[1749926713668,6.9706,143.41,143.39,0.05288756]
[1749926714069,0.05041911,143.42,143.39,0.05288756]
[1749926714265,0.05041911,143.42,143.39,5.39975038]
[1749926714468,0.05041911,143.42,143.4,37.16]
[1749926714669,0.05041911,143.42,143.41,5.34686282]
[1749926715066,0.05041911,143.42,143.41,12.31716282]
[1749926716567,0.05041911,143.42,143.4,44.1305]
[1749926716767,0.05041911,143.42,143.4,49.47736282]
[1749926718968,0.05041911,143.42,143.4,37.16]
[1749926719669,6.9703,143.41,143.4,37.16]
[1749926721068,6.9708,143.4,143.39,0.05288756]
[1749926730174,6.9708,143.4,143.39,8.756e-05]
[1749926735583,12.31766282,143.4,143.39,8.756e-05]
[1749926739082,6.9708,143.4,143.39,8.756e-05]
[1749926742490,6.9704,143.41,143.39,8.756e-05]
[1749926742691,0.05041911,143.42,143.39,8.756e-05]
[1749926743187,6.9708,143.41,143.39,8.756e-05]
[1749926743389,0.05041911,143.42,143.39,8.756e-05]
[1749926743692,6.9708,143.4,143.39,8.756e-05]
[1749926747088,12.31766282,143.4,143.39,8.756e-05]
[1749926747891,6.9708,143.4,143.39,8.756e-05]
[1749926748991,43.6308,143.4,143.39,8.756e-05]
[1749926749396,6.9742,143.33,143.32,36.66]
[1749926750694,6.9747,143.32,143.31,0.04818538]
[1749926751993,6.9772,143.27,143.25,36.66]
[1749926752384,5.34686282,143.29,143.23,12.83180323]
[1749926752590,6.9789,143.24,143.21,39.0057]
[1749926752897,5.34686282,143.29,143.22,6.9794]
[1749926753083,6.9779,143.26,143.24,0.05366814]
[1749926753285,0.05369842,143.27,143.24,0.05366814]
[1749926754798,6.9781,143.25,143.24,0.05366814]
[1749926762700,6.9795,143.22,143.21,36.68]
[1749926763002,5.34686282,143.26,143.18,39.5862]
[1749926763393,5.34686282,143.24,143.18,37.4]
[1749926763795,6.981,143.2,143.18,37.4]
[1749926763998,6.981,143.2,143.18,37.43940188]
[1749926764195,0.04718847,143.22,143.18,37.43940188]
[1749926764500,5.34686282,143.2,143.15,37.4]
[1749926765003,2.3506,143.21,143.15,37.4]
[1749926765504,0.04502966,143.19,143.15,42.74686282]
[1749926765695,0.04502966,143.19,143.17,5.34686282]
[1749926766002,39.6239,143.27,143.19,6.9806]
[1749926766195,39.6239,143.27,143.19,49.72746282]
[1749926766393,39.6239,143.27,143.19,42.74686282]
[1749926766597,6.9794,143.23,143.19,49.72746282]
[1749926766906,0.04481669,143.22,143.2,0.04502966]
[1749926768104,9.88396282,143.29,143.21,5.34686282]
[1749926768309,9.88396282,143.29,143.22,6.9792]
[1749926768310,6.978,143.26,143.22,6.9792]
[1749926768507,9.88396282,143.29,143.19,37.4]
[1749926768706,9.88396282,143.29,143.19,42.74686282]
[1749926768894,439.24,143.3,143.21,5.34686282]
[1749926768895,42.74686282,143.3,143.21,5.34686282]
[1749926769094,0.04461642,143.27,143.24,0.04690744]
[1749926769609,6.9776,143.26,143.24,0.04690744]
[1749926770116,7.02181642,143.27,143.24,7.02540744]
[1749926770295,0.04461642,143.27,143.24,7.02540744]
[1749926771106,0.04461642,143.27,143.25,5.34686282]
[1749926771804,0.04461642,143.27,143.25,12.32466282]
[1749926773203,0.04461642,143.27,143.26,6.9776]
[1749926773510,0.04461642,143.27,143.25,5.34686282]
[1749926774009,0.04461642,143.27,143.25,12.32466282]
[1749926774200,0.04461642,143.27,143.25,5.34686282]
[1749926774597,37.4,143.33,143.25,5.34686282]
[1749926774803,6.9754,143.31,143.25,5.34686282]
[1749926775004,6.9754,143.31,143.27,6.9768]
[1749926775201,6.9754,143.31,143.28,37.4]
[1749926775600,7.02590068,143.31,143.28,44.42044427]
[1749926775806,6.9757,143.3,143.28,37.44404427]
[1749926776208,7.02580068,143.31,143.28,37.44404427]
[1749926777715,7.02580068,143.31,143.28,44.42064427]
[1749926778118,6.9756,143.3,143.28,37.44404427]
[1749926778420,0.05050068,143.31,143.28,37.44404427]
[1749926779809,7.02580068,143.31,143.28,44.42064427]
[1749926781922,0.05050068,143.31,143.28,37.44404427]
[1749926782422,7.02600068,143.31,143.28,37.44404427]
[1749926785622,6.9757,143.3,143.28,37.44404427]
[1749926786214,0.05050068,143.31,143.28,44.42064427]
[1749926787122,7.02590068,143.31,143.28,44.42064427]
[1749926787621,0.05050068,143.31,143.28,37.44404427]
[1749926788419,7.02590068,143.31,143.28,44.42034427]
[1749926789323,0.05050068,143.31,143.29,5.34686282]
[1749926789524,44.3377,143.39,143.29,12.25756282]
[1749926789719,6.9377,143.39,143.32,5.34686282]
[1749926789923,6.9727,143.37,143.33,37.4]
[1749926790122,6.9377,143.39,143.33,37.4]
[1749926790325,6.973,143.36,143.33,44.3739]
[1749926790518,0.04657056,143.36,143.33,37.44545844]
[1749926790722,5.39343338,143.36,143.33,37.44545844]
[1749926790923,5.39343338,143.36,143.33,0.04545844]
[1749926791829,6.9737,143.34,143.33,0.04545844]
[1749926799527,6.9737,143.34,143.33,5.844e-05]
[1749926800129,6.9737,143.34,143.27,37.1]
[1749926800130,6.9766,143.28,143.27,37.1]
[1749926802936,6.9771,143.27,143.26,0.0519579]
[1749926805036,0.04439361,143.29,143.26,0.0519579]
[1749926805835,7.02089361,143.29,143.26,7.0293579]
[1749926806537,7.02089361,143.29,143.26,0.0519579]
[1749926806746,6.9767,143.28,143.26,0.0519579]